bitfinex-derivatives/quotes_ETHF0:USTF0_20251203
["timestamp","ask_amount","ask_price","bid_price","bid_amount"]
[1764793223038,0.7254,3128.3,3128.2,1.5509293]
[1764793223736,1.4541,3128.3,3128.2,0.0084293]
[1764793225644,42.2541,3128.3,3128.2,0.0084293]
[1764793226029,42.2541,3128.3,3127.4,8.24684]
[1764793226030,1.6753,3127.5,3127.4,8.087]
[1764793226430,1.4541,3127.1,3127.0,1.9808]
[1764793226635,1.4541,3127.1,3127.0,1.5425]
[1764793226837,0.7254,3127.1,3127.0,1.5425]
[1764793227042,1.4541,3127.1,3127.0,1.5425]
[1764793227244,1.45816454,3127.1,3127.0,1.54597844]
[1764793227544,0.00406454,3127.1,3127.0,1.98427844]
[1764793227843,0.72946454,3127.1,3127.0,1.98427844]
[1764793228446,1.45816454,3127.1,3127.0,1.54597844]
[1764793229132,0.00406454,3127.1,3127.0,1.98427844]
[1764793231840,1.45816454,3127.1,3127.0,0.78637844]
[1764793232036,0.00406454,3127.1,3127.0,1.98427844]
[1764793233240,0.00406454,3127.1,3127.0,2.14413844]
[1764793233446,1.44966454,3127.1,3127.0,1.70583844]
[1764793233648,1.44966454,3127.1,3127.0,0.94623844]
[1764793233940,1.44966454,3127.1,3127.0,0.00347844]
[1764793234142,1.44966454,3127.1,3126.0,1.5353]
[1764793234143,1.4825,3126.1,3126.0,1.5353]
[1764793234346,0.4434,3126.5,3126.0,1.9999]
[1764793234741,1.9259,3126.5,3126.4,0.7619]
[1764793234942,1.9259,3126.5,3126.0,0.4646]
[1764793235143,40.8,3126.4,3126.3,0.7619]
[1764793235454,40.8,3126.4,3126.3,1.5353]
[1764793235947,1.4825,3126.1,3126.0,0.76556179]
[1764793236149,1.4825,3126.1,3126.0,0.00366179]
[1764793236548,0.7623,3126.1,3126.0,1.53896179]
[1764793236947,0.7623,3126.1,3126.0,2.00356179]
[1764793238950,40.8,3126.4,3126.0,2.00356179]
[1764793239257,40.8,3126.4,3126.3,1.4937]
[1764793239554,40.8,3126.4,3126.3,0.7619]
[1764793240850,0.7348,3126.1,3126.0,1.97816179]
[1764793241258,1.4747,3126.1,3126.0,1.97816179]
[1764793241552,1.4747,3126.1,3126.0,0.00366179]
[1764793245866,1.4747,3126.1,3126.0,0.78176179]
[1764793246070,40.8,3126.4,3126.3,1.5099]
[1764793246371,0.7348,3126.1,3126.0,2.10757179]
[1764793247467,1.4747,3126.1,3126.0,0.00366179]
[1764793247775,1.4747,3125.1,3125.0,1.9745]
[1764793247971,0.4763,3126.0,3125.0,1.9745]
[1764793248172,40.8,3125.9,3125.0,1.9745]
[1764793248570,0.7348,3125.1,3125.0,1.9745]
[1764793248775,1.4747,3125.1,3125.0,0.78191513]
[1764793248976,0.7348,3125.1,3125.0,1.51371513]
[1764793249569,1.4747,3125.1,3125.0,1.51371513]
[1764793250878,0.7348,3125.1,3125.0,1.51371513]
[1764793251080,1.47949999,3125.4,3125.3,0.7781]
[1764793251272,0.00479999,3125.4,3125.3,1.5099]
[1764793251467,0.4632,3126.5,3125.3,1.5099]
[1764793251973,40.8,3126.4,3125.3,1.5099]
[1764793252686,0.00479999,3126.2,3125.3,1.5099]
[1764793252976,0.1883,3126.0,3125.4,1.5099]
[1764793253579,0.7348,3125.5,3125.4,1.5099]
[1764793253885,1.4747,3125.5,3125.4,0.7781]
[1764793254382,0.7348,3125.2,3125.1,1.66986]
[1764793255279,0.7348,3125.5,3125.4,0.7781]
[1764793255484,1.4747,3125.5,3125.0,0.43791513]
[1764793255983,1.951,3125.5,3125.0,0.43791513]
[1764793256177,1.4747,3125.1,3125.0,1.51371513]
[1764793256485,0.7348,3125.1,3125.0,1.51371513]
[1764793256783,0.7348,3125.1,3125.0,1.94781513]
[1764793257581,1.4747,3125.1,3125.0,1.51371513]
[1764793258377,1.4747,3125.1,3125.0,0.78191513]
[1764793258679,1.4747,3125.1,3125.0,0.00381513]
[1764793260380,0.7348,3124.1,3124.0,1.2122]
[1764793260685,0.4763,3125.0,3124.0,1.944]
[1764793260880,41.54136595,3124.9,3124.0,1.944]
[1764793261180,40.8,3124.9,3124.8,1.5099]
[1764793261384,0.73808654,3124.9,3124.8,1.51215299]
[1764793261882,41.53808654,3124.9,3124.8,1.51215299]
[1764793262283,0.73808654,3124.9,3124.8,1.51215299]
[1764793262490,0.00328654,3124.9,3124.8,1.51215299]
[1764793262886,1.47798654,3124.9,3124.8,0.00225299]
[1764793263487,43.01981636,3124.9,3124.8,0.00225299]
[1764793264081,42.27798654,3124.9,3124.8,0.00225299]
[1764793264980,42.27798654,3124.9,3124.8,0.78035299]
[1764793265175,40.80328654,3124.9,3124.8,1.51705299]
[1764793265781,0.00328654,3124.9,3124.8,1.51705299]
[1764793265986,0.1883,3126.0,3125.1,1.5102]
[1764793266189,41.54161317,3125.9,3125.1,1.5102]
[1764793266385,1.46871317,3125.8,3125.7,0.7735]
[1764793266686,2.18811317,3125.8,3125.0,0.4362]
[1764793266878,0.7271,3125.1,3125.0,1.2097]
[1764793267079,1.44948777,3125.1,3125.0,1.5102]
[1764793268385,0.7271,3124.9,3124.8,1.51245299]
[1764793268588,1.4465,3124.9,3124.8,0.00225299]
[1764793269484,0.00298777,3125.1,3125.0,1.5102]
[1764793269485,0.73008777,3125.1,3125.0,1.5102]
[1764793269690,0.00298777,3125.1,3125.0,1.9464]
[1764793270187,1.72067474,3126.6,3125.3,1.67015]
[1764793270384,1.0752569,3126.4,3125.3,1.67015]
[1764793270686,1.0752569,3126.3,3125.3,1.67015]
[1764793270885,1.0752569,3126.2,3125.3,1.67015]
[1764793271090,1.4738659,3126.1,3126.0,0.7735]
[1764793271389,2.1932659,3126.1,3126.0,0.7735]
[1764793271686,0.00479999,3126.1,3126.0,1.5102]
[1764793271881,0.73189999,3126.1,3126.0,0.7735]
[1764793272083,1.45129999,3126.1,3125.6,0.15993]
[1764793272284,0.7271,3125.6,3125.5,0.7735]
[1764793272593,0.1942,3126.0,3125.5,1.5102]
[1764793272988,0.1942,3126.0,3125.5,1.9464]
[1764793276690,1.4465,3125.6,3125.0,0.4362]
[1764793276991,1.4465,3125.1,3125.0,0.7735]
[1764793277193,1.4465,3124.9,3124.8,0.00225299]
[1764793277496,1.4465,3124.9,3124.8,0.77575299]
[1764793280596,1.4465,3124.9,3124.8,0.00225299]
[1764793282993,2.19162625,3124.9,3124.8,0.00225299]
[1764793283389,1.4465,3124.9,3124.8,0.00225299]
[1764793283688,2.52509941,3124.9,3124.8,1e-08]
[1764793284400,2.52502631,3124.9,3124.8,1e-08]
[1764793284695,1.4465,3124.4,3124.3,1.5547]
[1764793284887,0.7271,3124.4,3124.3,3.0649]
[1764793285093,0.4704,3125.0,3124.3,1.5102]
[1764793285296,2.19146402,3124.9,3124.8,0.7735]
[1764793285500,1.4465,3124.9,3124.8,0.7735]
[1764793285700,1.4465,3124.9,3124.8,0.77758171]
[1764793286404,1.4465,3124.9,3124.8,1.51428171]
[1764793286698,1.4465,3124.9,3124.8,0.77758171]
[1764793286899,1.4465,3124.9,3124.8,0.00408171]
[1764793287202,0.7271,3124.9,3124.8,1.51428171]
[1764793288505,40.8,3125.4,3124.8,1.51428171]
[1764793288706,1.4465,3125.3,3125.2,1.5102]
[1764793289003,1.4465,3125.3,3125.2,0.7735]
[1764793290092,1.4465,3125.3,3124.8,0.00408171]
[1764793291098,0.7271,3124.9,3124.8,1.51428171]
[1764793291704,41.2704,3125.5,3124.8,1.51428171]
[1764793293404,0.7448862,3125.4,3124.8,1.51428171]
[1764793294901,0.7271,3124.9,3124.8,1.51428171]
[1764793295100,41.2704,3125.5,3124.8,1.51428171]
[1764793295706,0.7449366,3125.4,3124.8,1.51428171]
[1764793295902,0.7437,3124.9,3124.8,1.51428171]
[1764793299408,41.2704,3125.5,3124.8,0.74078171]
[1764793299709,1.5047,3124.9,3124.8,1.49898171]
[1764793300511,0.7497,3124.9,3124.8,1.49898171]
[1764793300714,1.5047,3124.9,3124.8,0.76358171]
[1764793301006,1.5047,3124.9,3124.8,0.00408171]
[1764793302907,0.7497,3124.9,3124.8,1.49898171]
[1764793303101,41.2704,3125.5,3124.8,1.49898171]
[1764793303307,0.74550693,3125.4,3124.8,1.49898171]
[1764793305214,0.7497,3124.9,3124.8,1.49898171]
[1764793305510,0.7497,3124.9,3124.8,0.00408171]
[1764793305511,1.5047,3124.9,3124.8,0.00408171]
[1764793305915,1.5047,3124.9,3124.8,0.76358171]
[1764793306315,2.2570305,3124.9,3124.8,0.00408171]
[1764793309819,1.5047,3124.4,3124.3,1.317]
[1764793310015,2.59129878,3124.4,3124.3,1.317]
[1764793310213,0.7497,3123.6,3123.5,1.9311]
[1764793310622,40.8,3124.4,3123.5,1.9311]
[1764793310823,0.7497,3123.6,3123.5,1.93409033]
[1764793311325,1.5047,3123.6,3123.5,1.93409033]
[1764793311719,1.5047,3123.6,3123.5,1.49789033]
[1764793312120,0.7497,3123.6,3123.5,1.92909033]
[1764793312321,0.4358,3124.0,3123.5,1.92909033]
[1764793312622,1.5047,3123.6,3123.5,0.76249033]
[1764793313223,0.4358,3124.0,3123.5,1.92909033]
[1764793313430,1.5047,3123.6,3123.5,1.49789033]
[1764793314034,1.5047,3123.6,3123.5,0.76249033]
[1764793314933,1.5047,3123.6,3123.5,0.00299033]
[1764793315425,1.5047,3123.6,3123.5,0.76249033]
[1764793316027,1.5047,3123.6,3123.5,0.00299033]
[1764793316627,43.05485592,3123.6,3123.5,0.00299033]
[1764793316829,1.5047,3123.3,3123.2,0.00479999]
[1764793317835,1.5047,3123.3,3123.2,0.00771885]
[1764793319026,1.5047,3123.3,3123.2,1.50261885]
[1764793319225,1.5047,3123.3,3123.2,0.76721885]
[1764793319634,1.5047,3123.3,3123.2,0.00771885]
[1764793320927,1.5047,3123.1,3123.0,0.71011396]
[1764793321436,1.5047,3123.1,3122.0,1.4949]
[1764793321437,1.5047,3122.1,3122.0,1.4949]
[1764793322032,1.50702341,3122.1,3122.0,1.497363]
[1764793322433,1.50702341,3122.1,3122.0,0.002463]
[1764793322934,1.50702341,3122.1,3122.0,0.761963]
[1764793323135,1.50702341,3122.1,3122.0,1.497363]
[1764793323334,1.50702341,3122.1,3122.0,0.761963]
[1764793323836,0.00232341,3122.1,3122.0,1.937563]
[1764793324038,0.00232341,3122.1,3122.0,7.937563]
[1764793324234,0.00232341,3122.1,3122.0,1.937563]
[1764793324430,1.50922341,3122.1,3122.0,1.490163]
[1764793324641,1.50922341,3122.1,3122.0,0.002463]
[1764793324842,1.50922341,3122.1,3122.0,0.768663]
[1764793325042,1.50922341,3122.1,3122.0,1.496863]
[1764793325234,1.50922341,3122.1,3122.0,0.768663]
[1764793325537,1.50922341,3122.1,3122.0,0.002463]
[1764793325739,1.50922341,3122.1,3122.0,1.496863]
[1764793326242,1.50922341,3122.1,3122.0,1.944263]
[1764793326444,1.50922341,3122.1,3122.0,1.496863]
[1764793326636,1.50922341,3122.1,3122.0,0.768663]
[1764793326836,1.50922341,3122.1,3122.0,0.002463]
[1764793327347,1.50922341,3122.1,3122.0,1.496863]
[1764793328939,1.72067474,3123.7,3122.3,1.4944]
[1764793328940,0.16005,3123.4,3122.3,1.4944]
[1764793329243,1.5069,3123.1,3122.5,0.4474]
[1764793329642,1.5069,3122.6,3122.5,1.4944]
[1764793329945,0.7747,3123.0,3122.9,1.4944]
[1764793330142,1.51017883,3123.0,3122.9,1.4944]
[1764793331044,0.77797883,3123.0,3122.9,1.4944]
[1764793331343,0.00327883,3123.0,3122.9,1.4944]
[1764793331542,1.51017883,3123.0,3122.9,0.7662]
[1764793331742,1.51017883,3123.0,3122.9,1.4944]
[1764793333542,1.51017883,3123.0,3122.9,0.7662]
[1764793333847,1.51017883,3123.0,3122.9,1.4944]
[1764793334545,1.51017883,3123.0,3122.9,0.7662]
[1764793334848,0.7747,3122.7,3122.6,1.65449]
[1764793335442,1.5069,3122.7,3122.6,0.7662]
[1764793335651,0.7747,3122.1,3122.0,1.944263]
[1764793336151,0.46987883,3123.0,3122.0,1.944263]
[1764793337854,1.5069,3122.1,3122.0,0.002463]
[1764793338553,0.7747,3121.8,3121.7,1.49919999]
[1764793338758,5.2486,3122.5,3121.7,1.49919999]
[1764793338957,1.5069,3121.8,3121.7,0.00479999]
[1764793339257,42.3069,3121.8,3121.7,0.00479999]
[1764793339458,42.3069,3121.8,3121.7,0.00844761]
[1764793341156,42.3069,3121.8,3121.7,1.50284761]
[1764793341360,40.8,3121.8,3121.7,1.50284761]
[1764793342060,40.8,3121.8,3121.7,0.00844761]
[1764793343556,41.55547136,3121.8,3121.7,0.00844761]
[1764793344358,41.55547136,3121.8,3121.7,4.761e-05]
[1764793344554,1.5069,3121.6,3121.5,0.8339]
[1764793344753,2.26237136,3121.6,3121.5,0.8339]
[1764793344961,0.4582,3121.5,3120.6,0.16019]
[1764793345558,0.00479999,3121.4,3120.7,0.00479999]
[1764793346869,0.00479999,3121.4,3120.8,0.8139]
[1764793347066,0.7747,3120.9,3120.8,2.3083]
[1764793347264,1.5069,3120.9,3120.8,2.3083]
[1764793347860,1.5069,3120.9,3120.8,0.8139]
[1764793348061,1.5069,3120.9,3120.8,2.3083]
[1764793348456,0.7747,3120.9,3120.8,2.3083]
[1764793348656,0.00479999,3121.4,3120.8,2.3083]
[1764793349555,0.754327,3121.3,3120.8,2.3083]
[1764793350364,0.7747,3120.9,3120.8,2.3083]
[1764793350563,0.00479999,3121.4,3120.8,2.3083]
[1764793350868,0.7747,3121.3,3121.2,1.4944]
[1764793351164,0.00479999,3121.4,3121.3,1.4944]
[1764793351466,1.51169999,3121.4,3121.3,0.7662]
[1764793351867,1.5069,3120.9,3120.8,0.8139]
[1764793352058,1.5069,3120.8,3120.7,0.00479999]
[1764793352262,1.5069,3120.7,3120.0,0.4474]
[1764793352462,1.5069,3120.1,3119.5,0.4474]
[1764793353274,1.5069,3120.1,3119.5,0.45477291]
[1764793353772,1.5455,3119.6,3119.5,0.00737291]
[1764793354066,0.16021,3120.3,3119.5,1.94107291]
[1764793354272,0.7325,3119.6,3119.5,1.94107291]
[1764793354568,1.5033,3119.6,3119.5,0.00737291]
[1764793356267,0.7325,3119.6,3119.5,1.94107291]
[1764793356465,1.5033,3119.6,3119.5,1.18927291]
[1764793356672,1.5033,3119.6,3119.5,0.00737291]
[1764793357173,1.66354,3119.6,3119.5,0.00737291]
[1764793357369,0.2212,3119.5,3118.5,0.4474]
[1764793358572,0.7325,3118.8,3118.7,1.48381872]
[1764793359072,1.5012,3118.8,3118.7,0.00321872]
[1764793360165,1.5012,3118.8,3118.7,0.75321872]
[1764793360362,0.00480799,3119.3,3118.7,1.50211872]
[1764793360867,0.00480799,3119.3,3118.7,0.00321872]
[1764793360868,1.5321,3118.8,3118.7,0.00321872]
[1764793361972,1.5321,3118.8,3118.7,0.75321872]
[1764793362177,0.7634,3118.8,3118.7,1.50211872]
[1764793363674,1.5321,3118.8,3118.7,0.00321872]
[1764793363878,1.5321,3118.8,3118.7,0.75321872]
[1764793364173,1.5321,3118.8,3118.7,1.50211872]
[1764793364472,0.76820799,3119.3,3119.2,1.4989]
[1764793365076,1.53690799,3119.3,3119.2,1.4989]
[1764793365276,1.53690799,3119.3,3119.2,0.75]
[1764793365576,0.7634,3119.1,3119.0,1.9723]
[1764793365772,1.5321,3119.1,3119.0,1.2234]
[1764793365972,0.7634,3119.1,3119.0,1.9723]
[1764793366167,0.00480799,3119.3,3119.2,1.4989]
[1764793366370,2.1579328,3120.7,3119.2,1.4989]
[1764793366371,1.72067474,3120.4,3119.5,0.16025]
[1764793366674,1.5321,3119.6,3119.0,0.4734]
[1764793367176,1.5321,3119.6,3119.1,0.16027]
[1764793367678,0.00480799,3119.7,3119.6,1.4989]
[1764793372379,1.53690799,3119.7,3119.6,1.4989]
[1764793372676,0.00480799,3119.7,3119.6,1.4989]
[1764793373580,1.88085474,3120.9,3120.1,1.4989]
[1764793373778,0.77340872,3120.8,3120.1,1.4989]
[1764793374177,41.57087212,3120.7,3120.1,1.4989]
[1764793374367,0.77087212,3120.6,3120.1,1.4989]
[1764793375069,1.5321,3120.1,3120.0,0.75]
[1764793375877,0.7634,3120.1,3120.0,1.9723]
[1764793376281,0.16021,3120.4,3120.0,1.9723]
[1764793376580,1.5321,3120.1,3120.0,1.2234]
[1764793376776,2.30397885,3120.1,3120.0,1.2234]
[1764793377174,2.30397885,3120.1,3119.5,0.4734]
[1764793377373,0.77187885,3120.0,3119.5,0.4734]
[1764793377575,0.16021,3120.4,3119.5,0.4734]
[1764793377770,0.772353,3120.3,3119.5,0.4734]
[1764793377975,0.772353,3120.2,3119.5,0.4734]
[1764793378177,0.772353,3120.1,3119.5,0.4734]
[1764793378483,2.304453,3120.0,3119.9,0.75]
[1764793379185,2.304453,3120.0,3119.5,0.4734]
[1764793379486,0.772353,3119.9,3119.5,0.4734]
[1764793379786,0.16021,3120.4,3119.5,0.4734]
[1764793379978,0.77329928,3120.3,3119.5,0.4734]
[1764793380178,0.77329928,3120.2,3119.5,0.4734]
[1764793380378,0.77329928,3120.1,3119.5,0.4734]
[1764793380583,0.77329928,3120.0,3119.5,0.4734]
[1764793380784,0.77329928,3119.9,3119.5,0.4734]
[1764793381082,3.25277474,3120.6,3120.5,0.75]
[1764793381283,1.87088287,3120.6,3120.5,1.9723]
[1764793381583,0.77442927,3120.6,3120.5,1.9723]
[1764793382185,1.53782927,3120.6,3120.5,1.9723]
[1764793382481,2.30652927,3120.6,3120.5,1.2234]
[1764793382682,2.30652927,3120.6,3120.0,0.4734]
[1764793382875,0.77442927,3120.5,3120.0,0.4734]
[1764793383075,2.30652927,3120.4,3120.3,0.75]
[1764793383279,1.53782927,3120.4,3120.3,1.4989]
[1764793384080,2.27072927,3120.4,3120.3,1.4989]
[1764793384484,1.53782927,3120.4,3120.3,1.4989]
[1764793384788,1.48910799,3120.7,3120.6,0.727]
[1764793384989,2.26359871,3120.7,3120.6,0.727]
[1764793385482,0.77929871,3120.7,3120.6,1.4772]
[1764793385682,2.26346905,3120.7,3120.6,0.727]
[1764793385987,0.77916905,3120.7,3120.6,1.4772]
[1764793386388,0.00480799,3120.7,3120.6,1.4772]
[1764793388089,0.77879781,3120.7,3120.6,1.4772]
[1764793388289,0.00480799,3120.7,3120.6,1.4772]
[1764793389491,0.75620799,3120.7,3120.6,1.4772]
[1764793390393,0.00480799,3120.7,3120.6,1.4772]
[1764793394197,0.0025366,3120.8,3120.6,0.91039]
[1764793394393,0.0025366,3120.8,3120.7,1.4772]
[1764793394696,1.4868366,3120.8,3120.7,1.48004761]
[1764793396693,0.0025366,3120.8,3120.7,1.48004761]
[1764793400811,1.4843,3121.8,3121.7,1.4772]
[1764793400996,0.77844433,3121.8,3121.7,1.4772]
[1764793401198,40.8,3121.8,3121.7,0.7502]
[1764793401405,41.57844433,3121.8,3121.7,1.4772]
[1764793401705,0.91151,3122.2,3122.1,0.727]
[1764793401910,2.75854574,3122.2,3122.1,0.727]
[1764793402100,43.55854574,3122.2,3121.5,0.4341]
[1764793402297,2.26240847,3122.1,3122.0,1.9113]
[1764793404211,0.00230883,3122.2,3122.1,1.4772]
[1764793408413,0.7514,3122.1,3122.0,1.9113]
[1764793408615,1.48660883,3122.2,3122.1,1.4772]
[1764793409213,1.4843,3122.1,3122.0,1.1611]
[1764793409708,1.4843,3122.1,3121.5,0.4341]
[1764793411302,0.77680987,3122.0,3121.5,1.9113]
[1764793411508,2.26110987,3121.9,3121.8,0.727]
[1764793412012,43.06110987,3121.9,3121.5,0.4341]
[1764793412220,43.06110987,3121.9,3121.7,0.727]
[1764793412221,2.26110987,3121.8,3121.7,0.727]
[1764793412518,40.8,3121.9,3121.8,1.4772]
[1764793413012,40.8,3121.9,3121.8,0.727]
[1764793413213,0.7378,3121.6,3121.5,1.9797]
[1764793413613,40.8,3121.9,3121.5,1.9797]
[1764793413810,40.8,3121.9,3121.8,1.5456]
[1764793414008,41.57690209,3121.9,3121.8,1.5456]
[1764793415214,41.57690209,3121.9,3121.8,0.7883]
[1764793416919,41.57690209,3121.9,3121.8,1.5456]
[1764793418112,0.77690209,3121.9,3121.8,1.5456]
[1764793418316,0.16241883,3122.2,3121.5,0.4341]
[1764793418317,1.4806,3122.1,3122.0,2.0014]
[1764793418518,43.39149623,3122.1,3122.0,2.0014]
[1764793418718,43.39149623,3122.1,3122.0,1.2528]
[1764793419021,43.39149623,3122.1,3121.5,0.4341]
[1764793419316,2.25017583,3122.0,3121.9,1.487]
[1764793419721,2.25017583,3122.0,3121.9,0.7384]
[1764793421019,2.25017583,3122.0,3121.5,0.4341]
[1764793421317,0.7299,3121.6,3121.5,1.9211]
[1764793422017,1.4727,3121.6,3121.0,0.4341]
[1764793422215,0.7299,3121.1,3121.0,1.1725]
[1764793422417,0.16013,3121.9,3121.0,1.1725]
[1764793422717,1.11179088,3121.8,3121.0,1.1725]
[1764793422919,0.77810838,3121.7,3121.0,1.1725]
[1764793423116,2.25080838,3121.6,3121.5,0.7384]
[1764793423625,2.25080838,3121.6,3121.0,0.4341]
[1764793423924,2.25080838,3121.5,3121.4,0.7384]
[1764793424624,2.25080838,3121.5,3121.0,0.4341]
[1764793424822,0.7299,3121.1,3121.0,1.9211]
[1764793427311,1.4727,3121.1,3121.0,1.9211]
[1764793427515,1.4727,3121.1,3121.0,1.1725]
[1764793427723,2.25091846,3121.1,3121.0,1.9211]
[1764793428318,1.50811846,3121.1,3121.0,1.9211]
[1764793428518,0.77821846,3121.1,3121.0,1.9211]
[1764793428819,1.4727,3121.8,3121.7,1.487]
[1764793429019,2.58481216,3121.8,3121.7,1.487]
[1764793429825,1.84201216,3121.8,3121.7,1.487]
[1764793430527,0.77821758,3121.8,3121.7,1.487]
[1764793430729,0.7299,3122.0,3121.9,1.487]
[1764793431026,0.7299,3122.0,3121.5,1.2029]
[1764793431027,1.4727,3121.6,3121.5,1.2029]
[1764793431224,1.4727,3121.6,3121.5,1.9515]
[1764793432517,0.7299,3121.6,3121.5,1.9515]
[1764793432723,1.4727,3121.1,3121.0,1.9211]
[1764793432926,2.25116716,3121.1,3121.0,1.9211]
[1764793437434,2.25116716,3121.1,3121.0,1.1725]
[1764793437634,1.4727,3120.8,3120.7,1.48984761]
[1764793438227,0.7299,3120.8,3120.7,1.48984761]
[1764793438530,1.63286,3121.3,3121.2,0.7384]
[1764793438729,2.74600327,3121.3,3121.2,1.487]
[1764793438935,2.74600327,3121.3,3121.2,0.7384]
[1764793439438,1.4727,3121.1,3121.0,1.9515]
[1764793439630,2.25160158,3121.1,3121.0,1.9515]
[1764793440134,2.25160158,3121.1,3121.0,1.2029]
[1764793440429,2.25160158,3121.1,3120.7,0.00284761]
[1764793440630,1.4727,3120.8,3120.7,1.48984761]
[1764793441128,0.16016,3121.3,3120.7,1.48984761]
[1764793441331,2.58593646,3121.2,3121.1,0.7384]
[1764793441636,43.38593646,3121.2,3121.1,0.7384]
[1764793442136,1.4727,3121.1,3121.0,1.2029]
[1764793442436,2.2516756,3121.1,3121.0,1.9515]
[1764793442639,1.5088756,3121.1,3121.0,1.9515]
[1764793443134,2.2516756,3121.1,3121.0,1.9515]
[1764793443532,2.2789756,3121.1,3121.0,1.9515]
[1764793445629,1.5088756,3121.1,3121.0,1.9515]
[1764793446339,2.2789756,3121.1,3121.0,1.9515]
[1764793449238,1.5088756,3121.1,3121.0,1.9515]
[1764793449540,0.7789756,3121.1,3121.0,1.9515]
[1764793450541,0.728,3121.9,3121.8,1.4864]
[1764793450740,42.64167568,3121.9,3121.8,1.4864]
[1764793453038,41.57929101,3121.9,3121.8,1.4864]
[1764793454942,0.77929101,3121.9,3121.8,1.4864]
[1764793455145,0.00230883,3122.2,3122.1,1.4864]
[1764793464053,0.73030883,3122.2,3122.1,1.5100853]
[1764793464256,0.00230883,3122.2,3122.1,1.5100853]
[1764793466151,0.40145,3123.5,3122.7,1.4864]
[1764793466351,1.10747474,3123.4,3122.7,1.4864]
[1764793466546,1.10747474,3123.3,3122.7,1.4864]
[1764793466757,0.728,3122.8,3122.7,1.4864]
[1764793466953,40.8,3123.2,3122.7,1.5100853]
[1764793467157,2.27276831,3123.1,3123.0,1.918]
[1764793467456,2.27276831,3123.1,3123.0,0.00289585]
[1764793468153,2.27276831,3123.1,3123.0,0.02658115]
[1764793469060,2.27276831,3123.1,3123.0,0.74828115]
[1764793469360,2.43282831,3123.1,3123.0,0.74828115]
[1764793469847,2.43282831,3123.1,3123.0,0.02658115]
[1764793474161,1.5504,3122.7,3122.6,0.00480799]
[1764793475155,1.5504,3122.7,3122.6,0.00831477]
[1764793476252,0.7636,3122.7,3122.6,1.52031477]
[1764793476457,1.5504,3123.0,3122.9,1.512]
[1764793476659,2.32600118,3123.0,3122.9,1.512]
[1764793476863,1.5504,3123.0,3122.9,0.7654]
[1764793477456,1.5504,3123.0,3122.9,1.512]
[1764793477656,0.7636,3123.0,3122.9,1.512]
[1764793477857,1.5504,3123.0,3122.9,1.512]
[1764793478358,2.3266918,3123.0,3122.9,1.512]
[1764793479560,2.3266918,3123.0,3122.9,0.7654]
[1764793480070,2.3266918,3123.0,3122.9,1.5598]
[1764793480461,1.5398918,3123.0,3122.9,1.5598]
[1764793480666,2.3056918,3123.0,3122.9,1.5598]
[1764793481674,1.5506,3122.7,3122.6,0.00831477]
[1764793481859,2.3268918,3122.7,3122.6,0.00831477]
[1764793482271,2.66117853,3122.7,3122.6,1.57771477]
[1764793482465,2.3268918,3122.7,3122.6,1.57771477]
[1764793483264,2.66127965,3122.7,3122.6,1.57771477]
[1764793483464,2.3268918,3122.7,3122.6,1.57771477]
[1764793484173,2.6614345,3122.7,3122.6,1.57771477]
[1764793485266,1.5610918,3122.7,3122.6,1.57771477]
[1764793485570,0.7762918,3122.7,3122.6,1.57771477]
[1764793487878,2.3268918,3123.1,3123.0,2.0378]
[1764793488074,0.77103369,3123.1,3123.0,2.0378]
[1764793488270,0.00402811,3123.2,3123.1,1.5694]
[1764793488477,0.77471031,3123.2,3123.1,1.5694]
[1764793488678,0.00402811,3123.2,3123.1,1.5694]
[1764793490386,0.78882811,3123.2,3123.1,1.5694]
[1764793492186,1.55462811,3123.2,3123.1,0.775]
[1764793492386,0.7848,3122.7,3122.6,1.57771477]
[1764793493081,1.5506,3122.7,3122.6,1.57771477]
[1764793494374,2.83279347,3122.7,3122.6,0.00831477]
[1764793494782,3.60294342,3122.7,3122.6,0.00831477]
[1764793496491,3.93724186,3122.7,3122.6,0.00831477]
[1764793497588,3.60294342,3122.7,3122.6,0.00831477]
[1764793497786,3.93722734,3122.7,3122.6,0.00831477]
[1764793500396,3.90875918,3122.7,3122.6,0.00831477]
[1764793501297,3.90870351,3122.7,3122.6,0.00831477]
[1764793501494,4.06878351,3122.7,3122.6,0.00350678]
[1764793501693,1.1043782,3122.7,3122.0,2.0378]
[1764793501995,43.4549782,3122.6,3122.5,0.775]
[1764793502200,43.4549782,3122.6,3122.0,0.4684]
[1764793502394,2.6549782,3122.5,3122.4,0.775]
[1764793502700,3.90870351,3122.5,3122.4,0.0022434]
[1764793503001,44.70870351,3122.5,3122.4,0.0022434]
[1764793503394,44.83570351,3122.5,3122.4,0.0022434]
[1764793504301,44.70870351,3122.5,3122.4,0.0022434]
[1764793505105,44.70870351,3122.5,3122.4,1.5176434]
[1764793505397,43.4549782,3122.5,3122.4,1.5176434]
[1764793505598,0.78872811,3123.2,3123.1,1.5154]
[1764793505803,2.34264863,3123.2,3123.1,1.5154]
[1764793506002,1.55814863,3123.2,3123.1,1.5154]
[1764793506597,2.34264863,3123.2,3123.1,1.5154]
[1764793506803,3.59637394,3123.2,3123.1,0.7248]
[1764793507206,2.81187394,3123.2,3123.1,1.5154]
[1764793507509,1.55814863,3123.2,3123.1,1.5154]
[1764793507807,2.34264863,3123.2,3123.1,1.5154]
[1764793510101,1.55814863,3123.2,3123.1,1.5154]
[1764793510302,0.00479467,3123.3,3123.2,1.5154]
[1764793510504,0.7847,3123.8,3123.7,1.5154]
[1764793510805,40.8,3124.2,3124.1,0.7248]
[1764793511009,41.13379676,3124.2,3124.1,1.5154]
[1764793511513,41.13647318,3124.2,3124.1,1.5154]
[1764793511917,40.80267642,3124.2,3124.1,1.5154]
[1764793513014,40.80267642,3124.2,3124.1,0.7248]
[1764793513514,1.57187642,3124.2,3124.1,0.7248]
[1764793513710,1.5692,3124.1,3124.0,1.1765]
[1764793514107,1.5692,3124.1,3124.0,1.9671]
[1764793517411,1.5692,3124.1,3124.0,1.1765]
[1764793517613,1.5692,3123.9,3123.8,0.72960799]
[1764793517812,1.5692,3123.9,3123.8,1.52020799]